bitfinex-derivatives/quotes_ETHF0:USTF0_20210702
["timestamp","ask_amount","ask_price","bid_price","bid_amount"]
[1625216270091,5.82217,2062.5,2062.4,1.05847731]
[1625216271744,54.54077,2062.5,2062.4,1.05847731]
[1625216271994,5.82217,2062.5,2062.4,1.05847731]
[1625216273548,48.00677,2062.5,2062.4,1.05847731]
[1625216273848,5.82217,2062.5,2062.4,1.05847731]
[1625216273948,2.20527,2062.5,2062.4,1.05847731]
[1625216274199,2.20527,2062.5,2061.9,1.05825057]
[1625216274849,2.20527,2062.5,2062.3,2.20527]
[1625216275554,42.8925,2062.4,2062.3,2.20527]
[1625216275652,2.20527,2062.5,2062.3,2.20527]
[1625216276903,2.20527,2062.4,2062.3,2.20527]
[1625216280764,2.20527,2062.4,2061.9,1.05825057]
[1625216280911,2.20527,2062.4,2061.9,3.26352057]
[1625216282929,2.20527,2062.4,2062.2,2.20527]
[1625216284890,2.20527,2062.4,2062.3,2.20527]
[1625216298623,2.20527,2062.6,2062.3,2.20527]
[1625216298924,2.20527,2062.6,2062.5,52.9281]
[1625216299075,2.20527,2062.6,2062.5,2.20527]
[1625216308064,2.20527,2062.6,2062.5,63.12217]
[1625216308163,2.20527,2062.6,2062.5,2.20527]
[1625216309323,50.65557,2062.6,2062.5,2.20527]
[1625216309419,50.65557,2062.6,2061.5,1.0]
[1625216309519,50.65557,2062.6,2060.9,1.0]
[1625216309628,1.0,2062.5,2060.8,15.3048]
[1625216310073,6.0,2062.5,2060.8,15.3048]
[1625216310931,56.1251,2062.0,2060.8,15.3048]
[1625216311022,61.40577,2062.0,2061.9,2.20527]
[1625216311324,5.28067,2062.0,2061.9,2.20527]
[1625216312375,5.28067,2062.0,2061.7,2.20527]
[1625216313080,2.20527,2061.8,2061.7,2.20527]
[1625216314326,2.20527,2061.8,2061.4,2.20527]
[1625216314428,52.96297,2061.8,2060.5,1.0]
[1625216314579,53.96297,2061.8,2059.6,1.41654892]
[1625216314677,53.96297,2061.8,2059.7,1.0]
[1625216314978,53.96297,2061.8,2059.8,1.0]
[1625216315079,2.20527,2061.0,2060.8,2.20527]
[1625216315178,4.75547,2061.0,2060.8,2.20527]
[1625216315678,5.71757,2061.0,2060.8,2.20527]
[1625216316229,5.71757,2061.0,2059.4,1.0]
[1625216316330,1.0,2060.9,2059.3,42.6382]
[1625216316442,1.0,2060.9,2058.8,1.41722786]
[1625216316734,1.0,2060.9,2058.8,2.41722786]
[1625216317085,56.508,2060.3,2060.2,2.20527]
[1625216317194,2.4056,2060.3,2060.2,2.20527]
[1625216317746,53.2599,2060.3,2060.2,2.20527]
[1625216318000,58.2599,2060.3,2060.2,2.20527]
[1625216318449,53.2599,2060.3,2060.2,2.20527]
[1625216318651,53.2599,2060.3,2060.0,2.20527]
[1625216319110,2.20527,2060.1,2060.0,2.20527]
[1625216320020,2.20527,2060.1,2059.6,2.20527]
[1625216321077,2.20527,2059.7,2059.6,2.20527]
[1625216329263,2.20527,2059.7,2058.8,56.5227]
[1625216329365,2.20527,2059.7,2058.4,56.9903]
[1625216329466,3.20527,2059.7,2058.4,56.9903]
[1625216330570,2.20527,2059.7,2058.4,56.9903]
[1625216331119,2.20527,2059.7,2059.2,2.20527]
[1625216333176,4.41054,2059.7,2059.2,2.20527]
[1625216334713,4.41054,2059.7,2059.6,48.4516]
[1625216334861,14.6705,2060.4,2059.6,51.6842]
[1625216335162,2.20527,2060.0,2059.9,2.20527]
[1625216337071,2.20527,2060.0,2058.9,2.3829]
[1625216337173,4.54577,2060.0,2059.4,2.20527]
[1625216337271,2.20527,2059.5,2059.4,2.20527]
[1625216337380,2.3405,2060.0,2059.4,2.20527]
[1625216337672,43.6273,2059.9,2059.4,2.20527]
[1625216338625,2.3405,2060.0,2059.4,2.20527]
[1625216339277,2.20527,2059.5,2059.4,2.20527]
[1625216339428,4.69427,2059.5,2059.4,2.20527]
[1625216344539,4.69427,2059.5,2059.2,2.20527]
[1625216345340,2.20527,2059.5,2059.3,2.20527]
[1625216345542,2.20527,2059.5,2059.4,44.367]
[1625216345902,2.20527,2059.6,2059.3,2.20527]
[1625216359308,2.20527,2059.4,2059.3,2.20527]
[1625216359409,4.72857,2059.4,2059.3,2.20527]
[1625216360823,2.20527,2059.4,2059.3,2.20527]
[1625216361223,2.20527,2059.4,2059.3,60.05107]
[1625216361975,1.0,2060.2,2059.3,60.05107]
[1625216362075,15.8809,2060.5,2059.3,63.60777]
[1625216362326,15.8809,2060.5,2060.0,47.2531]
[1625216362427,15.8809,2060.5,2060.0,50.7596]
[1625216363332,2.20527,2060.2,2060.1,2.20527]
[1625216365142,5.00197,2060.2,2060.1,2.20527]
[1625216365243,5.97267,2060.2,2060.1,2.20527]
[1625216365343,7.20724,2060.2,2060.1,2.20527]
[1625216365595,67.22614,2060.2,2060.1,2.20527]
[1625216367150,7.20724,2060.2,2060.1,2.20527]
[1625216371680,2.7967,2060.2,2060.1,2.20527]
[1625216371781,14.6705,2060.4,2060.1,2.20527]
[1625216373432,2.20527,2060.3,2060.2,2.20527]
[1625216374032,5.19307,2060.3,2060.2,2.20527]
[1625216376085,5.19307,2060.3,2060.1,2.20527]
[1625216377438,5.19307,2060.3,2060.1,4.41054]
[1625216379914,2.20527,2060.3,2060.1,4.41054]
[1625216381281,2.20527,2060.3,2060.1,63.24984]
[1625216381585,2.20527,2060.3,2060.1,4.41054]
[1625216382436,5.56507,2060.3,2060.1,4.41054]
[1625216383239,59.2469,2060.2,2060.1,4.41054]
[1625216385449,59.2469,2060.2,2059.7,2.20527]
[1625216385700,64.2469,2060.2,2059.7,2.20527]
[1625216386208,43.1717,2059.8,2059.7,2.20527]
[1625216386350,46.2041,2059.8,2059.7,2.20527]
[1625216386704,46.2041,2059.8,2058.7,1.0]
[1625216386850,46.2041,2059.8,2058.6,49.7926]
[1625216387000,46.2041,2059.8,2058.1,78.801]
[1625216387102,1.9806,2059.7,2057.8,17.34842875]
[1625216387554,2.20527,2059.3,2059.2,2.20527]
[1625216387652,10.35987,2059.3,2059.0,2.20527]
[1625216387852,5.35987,2059.3,2059.0,2.20527]
[1625216387954,10.35987,2059.3,2059.0,2.20527]
[1625216388103,54.6437,2059.1,2059.0,2.20527]
[1625216388902,73.65787,2059.3,2059.0,2.20527]
[1625216389406,5.35987,2059.3,2059.0,2.20527]
[1625216389506,2.20527,2059.1,2059.0,2.20527]
[1625216390266,3.18847,2059.1,2059.0,2.20527]
[1625216390368,2.20527,2059.1,2059.0,2.20527]
[1625216392484,3.17937,2059.1,2059.0,2.20527]
[1625216393085,2.20527,2059.1,2059.0,2.20527]
[1625216393239,5.78837,2059.1,2059.0,2.20527]
[1625216393486,5.78837,2059.1,2058.6,2.20527]
[1625216393487,2.20527,2058.7,2058.6,2.20527]
[1625216399000,2.20527,2059.1,2058.6,2.20527]
[1625216399101,2.20527,2059.1,2058.7,54.4996]
[1625216399202,2.20527,2059.1,2058.6,5.78317]
[1625216400209,41.8863,2058.7,2058.6,5.78317]
[1625216400863,59.0709,2059.0,2058.6,5.78317]
[1625216400964,2.20527,2059.1,2058.6,5.78317]
[1625216401617,2.20527,2059.1,2059.0,2.20527]
[1625216403341,2.20527,2059.1,2059.0,53.56667]
[1625216403593,7e-05,2059.1,2059.0,53.56667]
[1625216403791,2.20527,2059.3,2059.0,53.56667]
[1625216403792,1.40883854,2059.8,2059.0,53.56667]
[1625216403993,14.8901,2059.9,2059.0,53.56667]
[1625216404548,14.8901,2059.9,2059.6,56.1894]
[1625216405246,14.8901,2059.9,2059.2,2.8932]
[1625216405594,14.8901,2059.9,2059.8,4.41054]
[1625216407301,16.29965798,2059.9,2059.8,4.41054]
[1625216407505,16.86255893,2059.9,2059.8,4.41054]
[1625216407597,19.06782893,2059.9,2059.8,2.77754]
[1625216407697,19.06782893,2059.9,2058.8,2.42924077]
[1625216407852,54.0998,2059.5,2058.8,1.42924077]
[1625216408048,0.9588,2059.5,2058.8,1.42924077]
[1625216408149,22.82322893,2059.9,2058.8,1.42924077]
[1625216408299,22.25990552,2059.9,2058.9,1.42923947]
[1625216408553,1.40927136,2059.8,2058.8,1.42931246]
[1625216408650,45.5913,2059.7,2058.8,1.42931246]
[1625216409001,1.40927136,2059.8,2058.8,1.42931246]
[1625216409503,1.40927136,2059.8,2059.1,44.5309]
[1625216409602,1.40927136,2059.8,2059.5,2.20527]
[1625216410059,22.26051498,2059.9,2059.5,2.20527]
[1625216410609,20.85077,2059.9,2059.5,2.20527]
[1625216410709,17.09537,2059.9,2059.5,2.20527]
[1625216411609,17.09537,2059.9,2059.8,2.20527]
[1625216415067,17.09537,2059.9,2059.5,2.20527]
[1625216415166,20.52547,2059.9,2059.5,2.20527]
[1625216415516,68.70887,2059.9,2059.5,2.20527]
[1625216415718,2.20527,2059.6,2059.5,2.20527]
[1625216416731,4.77447,2059.6,2059.5,2.20527]
[1625216420743,4.77447,2059.6,2059.2,2.20527]
[1625216421397,51.3053,2059.3,2059.2,2.20527]
[1625216421746,53.51057,2059.3,2059.2,2.20527]
[1625216422754,53.51057,2059.3,2058.8,2.20527]
[1625216423707,2.20527,2058.9,2058.8,2.20527]
[1625216423809,5.12637,2058.9,2058.8,2.20527]
[1625216425569,5.12637,2058.9,2058.3,1.42947107]
[1625216425770,4.41054,2058.4,2058.1,3.63491541]
[1625216425919,7.28994,2058.4,2058.1,3.63491541]
[1625216426119,7.28994,2058.4,2058.1,2.20527]
[1625216426771,47.8565,2058.2,2058.1,2.20527]
[1625216432050,47.8565,2058.2,2057.9,2.20527]
[1625216433806,2.20527,2058.0,2057.9,2.20527]
[1625216435859,2.20527,2058.0,2057.6,2.20527]
[1625216437812,2.20527,2057.7,2057.6,4.41054]
[1625216437962,5.29087,2057.7,2057.6,4.41054]
[1625216438718,56.55947,2057.7,2057.6,4.41054]
[1625216439168,56.55947,2057.7,2057.2,1.42605164]
[1625216439786,56.55947,2057.7,2057.4,2.20527]
[1625216440606,56.55947,2057.7,2057.2,1.42605164]
[1625216440704,56.55947,2057.7,2056.7,1.42580893]
[1625216441204,61.55947,2057.7,2056.6,1.42593865]
[1625216441304,50.5984,2056.8,2056.6,1.42593865]
[1625216441405,54.0883,2056.8,2056.6,1.42593865]
[1625216441804,54.0883,2056.8,2056.7,2.20527]
[1625216442008,54.0883,2056.8,2056.1,1.42623262]
[1625216442409,59.0883,2056.8,2056.0,1.42631276]
[1625216442813,59.0883,2056.8,2055.3,1.42430872]
[1625216442909,54.0883,2056.8,2055.3,1.42430872]
[1625216443310,41.6806,2056.0,2055.4,1.42436954]
[1625216443409,44.1773,2056.0,2055.4,1.42436954]
[1625216443658,2.4967,2056.0,2055.4,1.42436954]
[1625216443859,2.4967,2056.0,2055.9,2.20527]
[1625216444260,44.2514,2056.0,2055.9,2.20527]
[1625216444760,44.2514,2056.0,2055.1,1.42251405]
[1625216445812,44.2514,2056.0,2055.7,2.20527]
[1625216446667,2.4967,2056.0,2055.7,2.20527]
[1625216448619,49.96604,2056.1,2055.7,2.20527]
[1625216449818,2.20527,2055.8,2055.7,2.20527]
[1625216449922,4.56767,2055.8,2055.7,2.20527]
[1625216450020,4.56767,2055.8,2054.8,1.41955579]
[1625216450120,5.0,2055.7,2054.8,1.41955579]
[1625216450220,5.0,2055.7,2054.8,0.20405579]
[1625216450322,5.0,2055.7,2054.4,4.759]
[1625216450471,6.0,2055.7,2053.9,1.42013118]
[1625216450571,1.0,2055.7,2054.2,59.7335]
[1625216451171,1.0,2055.7,2053.2,2.98501358]
[1625216451421,1.0,2055.7,2053.2,1.0]
[1625216451772,57.0741,2055.7,2053.6,44.7788]
[1625216451871,2.20527,2054.5,2054.4,2.20527]
[1625216453870,4.41054,2054.5,2054.4,2.20527]
[1625216454374,7.68984,2054.5,2054.4,2.20527]
[1625216457831,7.68984,2054.5,2053.3,1.0]
[1625216457931,2.20527,2054.0,2053.8,2.20527]
[1625216458633,5.91137,2054.0,2053.8,2.20527]
[1625216459905,2.20527,2053.9,2053.8,2.20527]
[1625216464015,5.32707,2053.9,2053.8,2.20527]
[1625216464566,5.32707,2053.9,2053.6,2.20527]
[1625216466120,2.20527,2053.9,2053.6,2.20527]
[1625216471581,1.0,2054.7,2053.6,5.00157]
[1625216471680,16.1586,2054.8,2053.6,5.00157]
[1625216471931,16.1586,2054.8,2054.7,4.41054]
[1625216472032,16.1586,2054.8,2054.7,7.98694]
[1625216474237,2.20527,2055.2,2054.7,7.98694]
[1625216474940,2.20527,2055.2,2054.8,52.7383]
[1625216475653,2.20527,2055.2,2054.7,7.98694]
[1625216476003,2.20527,2055.2,2055.1,2.20527]
[1625216478908,1.0,2055.8,2055.1,2.20527]
[1625216479008,14.9848,2056.5,2055.1,2.20527]
[1625216479158,1.0,2056.3,2055.1,2.20527]
[1625216479963,2.20527,2055.9,2055.8,2.20527]
[1625216482015,4.41054,2055.9,2055.8,2.20527]
[1625216486828,4.41054,2055.9,2055.8,5.36917]
[1625216489407,6.86554,2055.9,2055.8,2.20527]
[1625216489857,2.455,2055.9,2055.8,2.20527]
[1625216490772,2.20527,2056.1,2055.8,2.20527]
[1625216492074,2.20527,2056.1,2056.0,2.20527]
[1625216504812,2.20527,2056.1,2055.0,1.0]
[1625216504964,9.64597,2056.1,2054.4,1.0]
[1625216505069,1.0,2056.0,2054.3,19.6225]
[1625216505468,1.0,2056.0,2053.6,79.5963]
[1625216505567,1.0,2056.0,2053.6,4.759]
[1625216505819,5.0,2055.8,2053.6,4.759]
[1625216505921,2.1,2055.7,2053.6,4.759]
[1625216506023,5.0,2055.6,2053.6,5.759]
[1625216506168,2.20527,2054.0,2053.9,2.20527]
[1625216506268,4.99197,2054.0,2053.9,2.20527]
[1625216508172,7.19724,2054.0,2053.9,2.20527]
[1625216509324,2.7867,2054.0,2053.9,2.20527]
[1625216509524,3.064,2054.5,2053.9,2.20527]
[1625216509723,3.064,2054.5,2053.9,5.61527]
[1625216510226,5.26927,2054.5,2054.4,4.41054]
[1625216510324,5.26927,2054.5,2054.4,46.08834]
[1625216510474,2.20527,2054.5,2054.4,46.08834]
[1625216511828,2.20527,2054.8,2054.4,46.08834]
[1625216512176,2.20527,2054.8,2054.7,2.20527]
[1625216518996,2.20527,2055.2,2054.7,2.20527]
[1625216519597,2.20527,2055.2,2055.1,58.0537]
[1625216519700,2.20527,2055.2,2055.1,60.7285]
[1625216520203,2.20527,2055.2,2055.1,2.6748]
[1625216520301,2.20527,2055.2,2055.1,4.88007]
[1625216521051,2.20527,2055.2,2055.1,2.20527]
[1625216532928,16.1714,2055.3,2055.1,4.53537]
[1625216533879,2.1,2055.9,2055.1,4.53537]
[1625216534030,2.92644142,2056.7,2055.5,54.3742]
[1625216534131,1.0,2056.6,2055.5,54.3742]
[1625216534384,17.84047,2056.1,2056.0,2.20527]
[1625216534632,2.20527,2056.1,2056.0,2.20527]
[1625216536340,2.20527,2056.1,2056.0,43.49747]
[1625216536437,4.41054,2056.1,2056.0,43.49747]
[1625216537287,4.41054,2056.1,2056.0,2.20527]
[1625216539745,2.96557135,2056.7,2056.0,2.20527]
[1625216539845,1.96557135,2056.7,2056.0,2.20527]
[1625216540249,1.96761255,2056.8,2056.0,2.20527]
[1625216540348,1.96761255,2056.8,2056.4,56.5969]
[1625216540496,4.17288255,2056.8,2056.7,2.20527]
[1625216540845,2.20527,2056.8,2056.7,2.20527]
[1625216542507,4.41054,2056.8,2056.7,2.20527]
[1625216543909,15.7561,2056.9,2056.7,2.20527]
[1625216545141,4.17382615,2057.3,2056.7,2.20527]
[1625216545644,2.20527,2057.3,2056.7,2.20527]
[1625216546544,2.20527,2057.3,2057.2,2.20527]
[1625216547646,2.20527,2057.3,2056.7,2.20527]
[1625216547897,52.9632,2057.2,2056.7,2.20527]
[1625216548497,4.41054,2056.8,2056.7,2.20527]
[1625216549800,1.0,2057.4,2056.7,2.20527]
[1625216549903,1.96819769,2057.5,2056.7,5.10697]
[1625216550550,2.20527,2057.2,2057.0,2.20527]
[1625216551809,1.96819769,2057.5,2057.0,2.20527]
[1625216552220,1.9747953,2057.8,2057.0,2.20527]
[1625216552559,2.20527,2057.7,2057.6,2.20527]
[1625216552811,4.18000731,2057.7,2057.6,2.20527]
[1625216553312,2.20527,2057.7,2057.6,2.20527]
[1625216554561,4.41054,2057.7,2057.6,2.20527]
[1625216558232,4.41054,2057.7,2057.6,5.28347]
[1625216559743,53.60524,2057.7,2057.6,5.28347]
[1625216560548,4.41054,2057.7,2057.6,5.28347]
[1625216566510,18.95399964,2058.3,2057.6,5.28347]
[1625216566609,17.95399964,2058.3,2058.2,4.41054]
[1625216566811,17.95399964,2058.3,2058.2,7.96924]
[1625216566812,15.9758,2058.3,2058.2,7.96924]
[1625216571494,64.8889,2058.3,2058.2,7.96924]
[1625216571596,15.9758,2058.3,2058.2,7.96924]
[1625216572900,15.9758,2058.3,2056.8,1.0]
[1625216573002,1.0,2058.2,2056.4,1.0]
[1625216573100,1.0,2058.2,2056.0,1.99225028]
[1625216573405,1.0,2058.2,2055.8,1.99221192]
[1625216573502,58.7694,2057.3,2055.8,1.99221192]
[1625216573754,58.7694,2057.3,2055.6,5.0]
[1625216573755,58.7694,2057.3,2055.6,1.9921251]
[1625216573853,59.7694,2057.3,2055.6,1.9921251]
[1625216574053,59.7694,2057.3,2055.5,62.500593]
[1625216574054,1.0,2057.3,2055.5,61.64690417]
[1625216574454,1.0,2057.3,2055.6,17.648663]
[1625216574680,2.20527,2056.7,2056.6,2.20527]
[1625216574771,4.54317,2056.7,2056.6,2.20527]
[1625216575270,4.54317,2056.7,2055.6,1.0]
[1625216575372,4.54317,2056.7,2055.5,59.6547]
[1625216576424,4.54317,2056.7,2055.6,17.581567]
[1625216576639,4.54317,2056.7,2056.5,2.20527]
[1625216578701,6.74844,2056.7,2056.5,2.20527]
[1625216580305,6.74844,2056.7,2056.5,55.81867]
[1625216580555,6.74844,2056.7,2056.5,2.20527]
[1625216581108,6.74844,2056.7,2056.5,60.70867]
[1625216581208,6.74844,2056.7,2056.5,2.20527]
[1625216582413,6.74844,2056.7,2056.3,2.20527]
[1625216582511,6.74844,2056.7,2055.4,1.0]
[1625216582619,7.74844,2056.7,2054.8,3.69981858]
[1625216582716,2.20527,2055.9,2055.8,2.20527]
[1625216582869,5.65577,2055.9,2055.8,2.20527]
[1625216583114,62.51047,2055.9,2055.6,2.20527]
[1625216584115,62.51047,2055.9,2054.7,1.0]
[1625216584217,62.51047,2055.9,2054.6,4.759]
[1625216584364,63.51047,2055.9,2054.6,4.759]
[1625216584768,2.20527,2055.2,2055.1,2.20527]
[1625216598978,2.20527,2055.2,2055.1,62.45247]
[1625216599077,2.20527,2055.2,2055.1,2.20527]
[1625216599428,1.0,2056.0,2055.1,2.20527]
[1625216599532,15.014,2056.6,2055.1,4.93557]
[1625216599632,15.9506,2056.5,2055.1,4.93557]
[1625216599885,15.9506,2056.5,2055.7,42.3449]
[1625216599986,14.9506,2056.5,2055.7,44.9767]
[1625216600638,14.9506,2056.5,2055.7,2.6318]
[1625216600839,2.20527,2056.3,2056.2,2.20527]
[1625216601438,43.79247,2056.3,2056.2,2.20527]
[1625216602140,2.20527,2056.3,2056.2,2.20527]
[1625216602841,4.41054,2056.3,2056.2,2.20527]
[1625216604754,50.44914,2056.3,2056.2,2.20527]
[1625216606415,50.44914,2056.3,2056.0,2.20527]
[1625216608522,1.1,2056.2,2056.0,2.20527]
[1625216609376,4.0332,2056.2,2055.0,1.0]
[1625216609475,4.0332,2056.2,2054.5,1.0]
[1625216609581,1.0,2056.1,2053.7,9.3196018]
[1625216609881,51.4731,2055.4,2054.0,16.83302843]
[1625216609978,55.7853,2055.4,2054.0,16.83302843]
[1625216610126,4.3122,2055.4,2054.0,1.99562843]
[1625216610583,3.3122,2055.4,2054.1,17.702759]
[1625216610678,4.3122,2055.4,2054.8,53.4799]
[1625216610784,3.3122,2055.4,2054.8,53.4799]
[1625216611033,2.20527,2055.3,2055.2,2.20527]
[1625216612084,58.22137,2055.3,2055.2,2.20527]
[1625216612692,58.22137,2055.3,2054.0,1.0]
[1625216612791,59.22137,2055.3,2053.9,1.99541043]
[1625216612993,59.22137,2055.3,2054.3,2.20527]
[1625216612994,2.20527,2054.5,2054.3,2.20527]
[1625216613544,47.2692,2054.4,2054.3,2.20527]
[1625216613949,49.8436,2054.4,2054.3,1.23037]
[1625216614646,2.5744,2054.4,2054.3,1.23037]
[1625216614748,2.5744,2054.4,2053.3,1.0]
[1625216614849,2.5744,2054.4,2053.2,14.8642]
[1625216615004,2.5744,2054.4,2053.9,2.20527]
[1625216615102,2.20527,2054.5,2053.9,2.20527]
[1625216616305,2.20527,2054.5,2053.7,2.20527]
[1625216616406,5.26467,2054.5,2053.7,2.20527]
[1625216616756,5.26467,2054.5,2052.7,1.99455061]
[1625216616857,1.0,2054.4,2052.7,1.99455061]
[1625216616954,48.5704,2053.6,2052.6,17.12860917]
[1625216617103,54.38977,2053.6,2053.4,2.20527]
[1625216617706,54.38977,2053.6,2053.2,2.20527]
[1625216618121,54.38977,2053.6,2052.4,1.99486811]
[1625216618420,54.38977,2053.6,2052.2,1.99337142]
[1625216618569,55.38977,2053.6,2052.2,1.99337142]
[1625216618771,55.38977,2053.6,2052.1,1.99345551]
[1625216619075,2.20527,2052.7,2052.6,2.20527]
[1625216620938,1.0,2053.5,2052.6,2.20527]
[1625216621040,2.20527,2052.9,2052.6,5.41897]
[1625216621600,44.0595,2052.7,2052.6,5.41897]
[1625216622549,2.20527,2052.9,2052.6,5.41897]
[1625216623052,2.20527,2052.7,2052.6,5.41897]
[1625216623852,48.24987,2052.7,2052.6,5.41897]
[1625216624203,2.20527,2052.7,2052.6,5.41897]
[1625216629310,2.20527,2052.9,2052.6,5.41897]
[1625216631125,2.20527,2052.7,2052.6,5.41897]
[1625216633027,48.57677,2052.7,2052.6,5.41897]
[1625216633378,2.20527,2052.7,2052.6,5.41897]
[1625216634987,2.20527,2052.7,2052.6,3.2137]
[1625216635085,2.20527,2052.7,2051.5,58.8579]
[1625216635187,2.20527,2052.2,2052.1,2.20527]
[1625216637237,4.41054,2052.2,2052.1,2.20527]
[1625216639767,4.41054,2052.2,2050.8,1.0]
[1625216639862,5.41054,2052.2,2050.7,20.172]
[1625216640359,52.5521,2051.7,2050.7,4.759]
[1625216640458,52.5521,2051.7,2050.2,4.759]
[1625216640559,5.41054,2052.2,2050.2,4.759]
[1625216640662,5.41054,2052.2,2050.2,7.3274]
[1625216640762,5.41054,2052.2,2050.2,12.3274]
[1625216641112,5.41054,2052.2,2050.9,47.5837]
[1625216641263,2.20527,2052.2,2051.7,2.20527]
[1625216642462,44.9265,2051.9,2051.4,2.20527]
[1625216642562,2.20527,2052.2,2051.4,2.20527]
[1625216642662,2.20527,2052.2,2051.4,4.74937]
[1625216643166,43.80977,2052.2,2051.4,4.74937]
[1625216643262,2.20527,2051.5,2051.4,4.74937]
[1625216644917,2.20527,2051.5,2051.4,2.20527]
[1625216650237,2.20527,2051.5,2051.4,7e-05]
[1625216650540,2.20527,2051.5,2050.7,49.1932]
[1625216651303,2.20527,2051.5,2051.1,2.20527]
[1625216651401,2.20527,2051.5,2051.1,4.74937]
[1625216653263,2.20527,2051.2,2051.1,4.74937]
[1625216655622,2.20527,2051.2,2051.1,2.5441]
[1625216655722,2.20527,2051.2,2050.1,1.0]
[1625216655822,2.20527,2051.2,2050.0,0.05]
[1625216657330,2.20527,2050.5,2050.4,2.20527]
[1625216659339,2.20527,2050.5,2050.0,0.05]
[1625216659340,4.41054,2050.5,2050.0,0.05]
[1625216661342,2.20527,2050.5,2050.1,2.20527]
[1625216662305,2.20527,2050.5,2050.0,0.05]
[1625216663361,2.20527,2050.1,2050.0,0.05]
[1625216673172,2.20527,2050.5,2050.0,0.05]
[1625216673273,2.20527,2050.5,2050.0,2.4916]
[1625216673476,4.41054,2050.5,2050.1,2.20527]
[1625216675432,2.20527,2050.2,2050.1,4.41054]
[1625216676004,2.20527,2050.2,2050.1,53.20794]
[1625216677405,2.20527,2050.2,2050.1,4.41054]
[1625216678012,2.20527,2050.2,2050.1,60.56424]
[1625216678212,2.20527,2050.5,2050.1,60.56424]
[1625216678316,1.0,2051.3,2050.1,60.56424]
[1625216678421,15.3993,2051.6,2050.1,60.56424]
[1625216678915,15.3993,2051.6,2051.5,52.3904]
[1625216679015,15.5031,2051.8,2051.5,55.5271]
[1625216679216,15.5031,2051.8,2051.5,3.1367]
[1625216679366,5.0,2053.0,2051.5,3.1367]
[1625216679466,4.41054,2051.6,2051.5,3.1367]
[1625216684297,4.41054,2051.6,2051.3,2.20527]
[1625216685506,4.41054,2051.6,2051.4,2.20527]
[1625216694641,4.41054,2051.6,2050.2,5.759]
[1625216694739,8.27494,2051.6,2050.2,4.759]
[1625216695539,59.7145,2051.4,2050.0,15.6891]
[1625216695639,2.20527,2050.2,2050.1,2.20527]
[1625216695743,2.20527,2050.2,2050.0,0.05]
[1625216696448,52.4221,2050.1,2050.0,0.05]
[1625216697503,2.20527,2050.2,2050.0,0.05]
[1625216697604,2.20527,2050.1,2050.0,0.05]
[1625216699366,7.20527,2050.1,2050.0,0.05]
[1625216699468,2.20527,2050.1,2050.0,0.05]
[1625216699719,4.50747,2050.1,2050.0,0.05]
[1625216700221,4.50747,2050.1,2047.5,1.98745682]
[1625216700371,58.6448,2048.6,2047.5,0.52145682]
[1625216700869,1.0,2048.9,2047.5,0.52145682]
[1625216701021,16.4899,2049.8,2047.5,0.52145682]
[1625216701122,16.4899,2049.8,2047.4,1.0]
[1625216701123,17.5899,2049.8,2047.4,1.0]
[1625216701221,17.5899,2049.8,2047.0,5.0]
[1625216701323,49.0984,2049.1,2046.7,2.84308824]
[1625216701472,1.0,2049.0,2047.1,0.15823731]
[1625216701722,1.0,2049.0,2046.6,0.9845]
[1625216701723,2.20527,2047.7,2047.5,2.20527]
[1625216702222,1.05184189,2047.7,2047.5,2.20527]
[1625216704428,1.05184189,2047.7,2047.3,2.20527]
[1625216704826,4.189e-05,2047.7,2047.3,2.20527]
[1625216704928,1.0,2049.0,2047.3,2.20527]
[1625216705027,1.0,2049.0,2047.3,4.96107]
[1625216705376,1.0,2049.0,2048.3,46.4411]
[1625216705477,15.4899,2049.8,2048.3,46.4411]
[1625216705581,15.4899,2049.8,2047.4,1.0]
[1625216705679,2.20527,2048.5,2048.4,2.20527]
[1625216707684,4.41054,2048.5,2048.4,2.20527]
[1625216708734,4.41054,2048.5,2047.0,15.8665]
[1625216708834,4.41054,2048.5,2047.0,14.8665]
[1625216709034,4.41054,2048.5,2046.9,4.759]
[1625216709686,2.20527,2047.9,2047.8,2.20527]
[1625216711720,4.41054,2047.9,2047.8,2.20527]
[1625216711920,1.0,2048.7,2047.8,2.20527]
[1625216712028,15.3846,2049.4,2047.8,2.20527]
[1625216712778,5.0,2049.3,2047.8,2.20527]
[1625216712877,7.3297,2049.3,2047.8,2.20527]
[1625216713127,2.3297,2049.3,2047.8,2.20527]
[1625216713678,4.41054,2047.9,2047.8,2.20527]
[1625216714081,4.41054,2047.9,2046.5,1.0]
[1625216714181,4.41054,2047.9,2046.4,4.759]
[1625216715439,4.41054,2047.9,2046.5,17.867027]
[1625216715537,4.41054,2047.9,2046.5,20.933627]
[1625216715788,2.20527,2047.9,2047.4,2.20527]
[1625216717693,2.20527,2047.5,2047.4,2.20527]
[1625216719348,2.20527,2047.5,2047.2,2.20527]
[1625216719751,2.20527,2047.3,2047.2,2.20527]
[1625216720763,2.20527,2047.3,2046.8,2.20527]
[1625216721713,2.20527,2046.9,2046.8,2.20527]
[1625216722268,2.20527,2046.9,2046.7,2.20527]
[1625216722415,2.20527,2046.9,2045.7,4.759]
[1625216723470,5.50767,2046.9,2045.7,4.759]
[1625216723570,5.50767,2046.9,2045.0,2.83310047]
[1625216723719,2.20527,2045.5,2045.4,2.20527]